fUSD/lending_fUSD_20260126
["ID","MTS","AMOUNT","RATE_DAILY","PERIOD"]
[403653362,1769448863648,-675.70381638,0.00023668,31]
[403653363,1769448863721,-150.0,0.000238,30]
[403653364,1769448863798,-675.70381638,0.00024001,35]
[403653365,1769448863873,-484.91974155,0.00024051,40]
[403653366,1769448863943,-160.68858642,0.00024278,38]
[403653367,1769448864015,-675.70381638,0.00024335,39]
[403653368,1769448864090,-675.70381638,0.00024668,42]
[403653369,1769448864165,-150.0,0.000247,30]
[403653370,1769448864581,-484.91974155,0.00024861,48]
[403653371,1769448864650,-216.0,0.0002493,30]
[403653372,1769448864721,-335.64427243,0.00025,60]
[403653373,1769448864792,-1110.02400608,0.00025,60]
[403653374,1769448864862,-722.64632972,0.00025,30]
[403653375,1769448864934,-2002.756173,0.00025,120]
[403653376,1769448865004,-10000.0,0.00025,30]
[403653377,1769448865074,-611.0,0.00025,120]
[403653378,1769448865144,-675.70381638,0.00025002,46]
[403653379,1769448865214,-161.63991385,0.00025021,56]
[403653380,1769448865282,-591.209578,0.00025241,120]
[403653381,1769448865351,-675.70381638,0.00025335,50]
[403653382,1769448865418,-355.47047384,0.000255,30]
[403653383,1769448865486,-675.70381638,0.00025669,54]
[403653384,1769448865560,-484.91974155,0.00025671,56]
[403653385,1769448865631,-160.68858642,0.00025917,56]
[403653386,1769448865698,-675.70381638,0.00026002,57]
[403653387,1769448865772,-675.70381638,0.00026336,61]
[403653388,1769448865843,-484.91974155,0.00026481,63]
[403653389,1769448865916,-675.70381638,0.00026669,65]
[403653390,1769448865989,-900.0,0.00027,120]
[403653391,1769448866070,-675.70381638,0.00027003,69]
[403653392,1769448866147,-484.91974155,0.00027291,71]
[403653393,1769448866218,-675.70381638,0.00027336,72]
[403653394,1769448866289,-218.72770934,0.0002737,30]
[403653395,1769448866359,-712.8,0.0002737,30]
[403653396,1769448866427,-773.8,0.0002737,30]
[403653397,1769448866497,-749.0,0.0002737,30]
[403653398,1769448866570,-894.8,0.0002737,30]
[403653399,1769448866643,-433.4,0.0002737,30]
[403653400,1769448866714,-422.4,0.0002737,30]
[403653401,1769448866787,-889.8,0.0002737,30]
[403653402,1769448866856,-672.02727255,0.0002737,30]
[403653403,1769448866929,-1238.29247206,0.00027397,30]
[403653404,1769448867000,-500.0,0.00027397,30]
[403653405,1769448867078,-997.07228186,0.00027397,120]
[403653406,1769448867149,-500.0,0.00027397,30]
[403653407,1769448867222,-801.53308525,0.000274,30]
[403653408,1769448867296,-160.68858642,0.00027556,74]
[403653409,1769448867364,-288.81694009,0.00027604,120]
[403653410,1769448867435,-675.70381638,0.0002767,76]
[403653411,1769448867510,-168.31240106,0.00028,120]
[403653412,1769448867580,-1000.0,0.00028,120]
[403653413,1769448867653,-675.70381638,0.00028003,80]
[403653414,1769448867721,-484.91974155,0.00028102,79]
[403653415,1769448867791,-1119.61045886,0.00028297,120]
[403653416,1769448867860,-675.70381638,0.00028337,83]
[403653417,1769448867931,-675.70381638,0.0002867,87]
[403653418,1769448868003,-500.0,0.00028767,120]
[403653419,1769448868070,-210.0,0.0002882,30]
[403653420,1769448868138,-500.0,0.00028822,120]
[403653421,1769448868207,-500.0,0.00028877,120]
[403653422,1769448868277,-484.91974155,0.00028912,86]
[403653423,1769448868345,-274.717738,0.00028931,120]
[403653424,1769448868413,-3000.0,0.00029,30]
[403653425,1769448868484,-3888.0,0.00029,30]
[403653426,1769448868553,-675.70381638,0.00029004,91]
[403653427,1769448868627,-161.63991384,0.00029118,120]
[403653428,1769448868696,-160.68858642,0.00029196,92]
[403653429,1769448868767,-675.70381638,0.00029337,95]
[403653430,1769448868836,-335.40585014,0.00029599,30]
[403653431,1769448868904,-161.47116908,0.00029621,120]
[403653432,1769448868972,-675.70381638,0.00029671,98]
[403653433,1769448869042,-157.30773534,0.00029684,120]
[403653434,1769448869111,-484.91974155,0.00029722,94]
[403653435,1769448869176,-160.68858642,0.00029895,120]
[403653436,1769448869251,-764.0,0.0003,120]
[403653437,1769448869317,-182.71069256,0.0003,30]
[403653438,1769448869383,-1885.0,0.0003,60]
[403653439,1769448869448,-396.0,0.0003,120]
[403653440,1769448869518,-1000.0,0.0003,120]
[403653441,1769448869588,-3000.0,0.0003,30]
[403653442,1769448869656,-2012.58368781,0.0003,120]
[403653443,1769448869728,-1000.0,0.0003,120]
[403653444,1769448869810,-675.70381638,0.00030004,102]
[403653445,1769448869878,-800.1,0.0003011,30]
[403653446,1769448869946,-714.6,0.0003011,30]
[403653447,1769448870016,-1422.0,0.0003011,30]
[403653448,1769448870084,-798.6,0.0003011,30]
[403653449,1769448870389,-1430.7,0.0003011,30]
[403653450,1769448870455,-660.9,0.0003011,30]
[403653451,1769448870524,-1455.0,0.0003011,30]
[403653452,1769448870593,-992.1,0.0003011,30]
[403653453,1769448870661,-600.9,0.0003011,30]
[403653454,1769448870731,-932.36579618,0.0003011,30]
[403653455,1769448870806,-179.91,0.0003011,30]
[403653456,1769448870875,-171.522,0.0003011,30]
[403653457,1769448870947,-675.70381638,0.00030338,106]
[403653458,1769448871015,-199.01,0.00030411,120]
[403653459,1769448871084,-484.91974155,0.00030532,102]
[403653460,1769448871151,-675.70381638,0.00030671,110]
[403653461,1769448871217,-160.68858642,0.00030835,110]
[403653462,1769448871282,-210.0,0.0003084,30]
[403653463,1769448871348,-158.2478759,0.00031,120]
[403653464,1769448871415,-1878.91986046,0.00031,30]
[403653465,1769448871499,-1334.38,0.00031,30]
[403653466,1769448871571,-151.0,0.00031,31]
[403653467,1769448871640,-151.0,0.00031,31]
[403653468,1769448871711,-500.0,0.0003121,31]
[403653469,1769448871784,-500.0,0.0003121,31]
[403653470,1769448871850,-500.0,0.0003121,31]
[403653471,1769448871918,-500.0,0.0003121,31]
[403653472,1769448871989,-154.91921188,0.000314,30]
[403653473,1769448872055,-151.0,0.0003143,31]
[403653474,1769448872123,-151.0,0.0003143,31]
[403653475,1769448872191,-151.0,0.0003143,31]
[403653476,1769448872259,-151.0,0.0003143,31]
[403653477,1769448872325,-151.0,0.0003143,31]
[403653478,1769448872395,-163.845237,0.0003143,31]
[403653479,1769448872463,-151.0,0.0003143,31]
[403653480,1769448872532,-163.845237,0.0003143,31]
[403653481,1769448872599,-163.845237,0.0003143,31]
[403653482,1769448872666,-163.845237,0.0003143,31]
[403653483,1769448872735,-151.0,0.0003143,31]
[403653484,1769448872807,-151.0,0.0003143,31]
[403653485,1769448872877,-151.0,0.0003143,31]
[403653486,1769448872947,-151.0,0.0003143,31]
[403653487,1769448873015,-151.0,0.0003143,31]
[403653488,1769448873083,-689.52635591,0.000315,120]
[403653489,1769448873151,-154.27,0.00031644,91]
[403653490,1769448873221,-1168.70446238,0.00032,120]
[403653491,1769448873296,-1334.38,0.00032,30]
[403653492,1769448873373,-1000.0,0.00032,120]
[403653493,1769448873451,-154.7816496,0.000326,90]
[403653494,1769448873523,-500.3733059,0.000326,30]
[403653495,1769448873595,-1823.34563,0.000326,120]
[403653496,1769448873668,-1333.5,0.00032849,120]
[403653497,1769448873755,-1191.0,0.00032849,120]
[403653498,1769448873831,-2370.0,0.00032849,120]
[403653499,1769448873906,-1331.0,0.00032849,120]
[403653500,1769448873977,-2384.5,0.00032849,120]
[403653501,1769448874050,-1101.5,0.00032849,120]
[403653502,1769448874117,-2425.0,0.00032849,120]
[403653503,1769448874187,-1653.5,0.00032849,120]
[403653504,1769448874262,-1001.5,0.00032849,120]
[403653505,1769448874328,-1553.94299363,0.00032849,120]
[403653506,1769448874401,-229.68867615,0.00032849,120]
[403653507,1769448874475,-299.85,0.00032849,120]
[403653508,1769448874545,-285.87,0.00032849,120]
[403653509,1769448874616,-210.0,0.0003286,30]
[403653510,1769448874695,-185.0,0.00033,120]
[403653511,1769448874765,-2000.0,0.00033,30]
[403653512,1769448874832,-599.83,0.00033,120]
[403653513,1769448874900,-1334.38,0.00033,30]
[403653514,1769448874971,-11429.33571325,0.000336,120]
[403653515,1769448875041,-2000.0,0.00033741,120]
[403653516,1769448875111,-178.86694566,0.00034,30]
[403653517,1769448875176,-2000.0,0.00034,30]
[403653518,1769448875242,-250.0,0.00034,120]
[403653519,1769448875311,-1334.38,0.00034,30]
[403653520,1769448875379,-1000.0,0.00034,120]
[403653521,1769448875445,-152.10795,0.00034,31]
[403653522,1769448875514,-151.0,0.00034,31]
[403653523,1769448875583,-151.0,0.00034,31]
[403653524,1769448875651,-151.0,0.00034,31]
[403653525,1769448875721,-151.0,0.00034,31]
[403653526,1769448875791,-151.0,0.00034,31]
[403653527,1769448875862,-151.0,0.00034,31]
[403653528,1769448875933,-151.0,0.00034,31]
[403653529,1769448876223,-151.0,0.00034,31]
[403653530,1769448876292,-151.0,0.00034,31]
[403653531,1769448876358,-151.0,0.00034,31]
[403653532,1769448876424,-151.0,0.00034,31]
[403653533,1769448876493,-151.0,0.00034,31]
[403653534,1769448876562,-151.0,0.00034,31]
[403653535,1769448876629,-151.0,0.00034,31]
[403653536,1769448876697,-151.0,0.00034,31]
[403653537,1769448876766,-159.478288,0.00034,31]
[403653538,1769448876840,-263.007601,0.00034,31]
[403653539,1769448876908,-151.0,0.00034,31]
[403653540,1769448876975,-151.0,0.00034,31]
[403653541,1769448877042,-151.0,0.00034,31]
[403653542,1769448877110,-252.38187,0.00034,31]
[403653543,1769448877176,-183.037011,0.00034,30]
[403653544,1769448877241,-256.918641,0.00034,31]
[403653545,1769448877310,-252.38187,0.00034,31]
[403653546,1769448877375,-183.037011,0.00034,30]
[403653547,1769448877442,-151.0,0.00034,31]
[403653548,1769448877509,-252.38187,0.00034,31]
[403653549,1769448877576,-183.037011,0.00034,30]
[403653550,1769448877642,-151.0,0.00034,31]
[403653551,1769448877708,-151.0,0.00034,31]
[403653552,1769448877774,-252.38187,0.00034,31]
[403653553,1769448877841,-183.037011,0.00034,30]
[403653554,1769448877907,-151.0,0.00034,31]
[403653555,1769448877975,-151.0,0.00034,31]
[403653556,1769448878042,-151.0,0.00034,31]
[403653557,1769448878112,-162.42116,0.00034,31]
[403653558,1769448878181,-151.0,0.00034,31]
[403653559,1769448878248,-151.0,0.00034,31]
[403653560,1769448878317,-151.0,0.00034,31]
[403653561,1769448878386,-151.0,0.00034,31]
[403653562,1769448878452,-151.0,0.00034,31]
[403653563,1769448878519,-151.0,0.00034,31]
[403653564,1769448878587,-151.0,0.00034,31]
[403653565,1769448878655,-151.0,0.00034,31]
[403653566,1769448878725,-151.0,0.00034,31]
[403653567,1769448878794,-181.988115,0.00034,31]
[403653568,1769448878864,-1823.34563,0.000344,120]
[403653569,1769448878932,-2084.26,0.000345,30]
[403653570,1769448878999,-5000.0,0.00034567,30]
[403653571,1769448879069,-1444.0,0.00034849,120]
[403653572,1769448879137,-210.0,0.0003488,30]
[403653573,1769448879205,-250.0,0.00035,120]
[403653574,1769448879269,-530.0,0.00035,45]
[403653575,1769448879332,-1334.38,0.00035,30]
[403653576,1769448879396,-1145.81989,0.00035241,120]
[403653577,1769448879460,-164.04578201,0.00035589,120]
[403653578,1769448879528,-2494.8,0.00035589,120]
[403653579,1769448879595,-2708.3,0.00035589,120]
[403653580,1769448879661,-2621.5,0.00035589,120]
[403653581,1769448879731,-3131.8,0.00035589,120]
[403653582,1769448879801,-1516.9,0.00035589,120]
[403653583,1769448879871,-1478.4,0.00035589,120]
[403653584,1769448879946,-3114.3,0.00035589,120]
[403653585,1769448880012,-2352.09545392,0.00035589,120]
[403653586,1769448880078,-387.78987772,0.000356,30]
[403653587,1769448880147,-151.0,0.0003561,31]
[403653588,1769448880224,-151.0,0.0003561,31]
[403653589,1769448880308,-400.55876,0.0003561,31]
[403653590,1769448880373,-400.55876,0.0003561,31]
[403653591,1769448880438,-400.55876,0.0003561,31]
[403653592,1769448880507,-400.55876,0.0003561,31]
[403653593,1769448880574,-151.0,0.0003561,31]
[403653594,1769448880644,-175.537551,0.0003561,31]
[403653595,1769448880714,-151.0,0.0003561,31]
[403653596,1769448880785,-151.0,0.0003561,31]
[403653597,1769448880857,-151.0,0.0003561,31]
[403653598,1769448880924,-151.0,0.0003561,31]
[403653599,1769448880991,-151.0,0.0003561,31]
[403653600,1769448881061,-151.0,0.0003561,31]
[403653601,1769448881127,-151.0,0.0003561,31]
[403653602,1769448881195,-151.0,0.0003561,31]
[403653603,1769448881264,-151.0,0.0003561,31]
[403653604,1769448881331,-151.0,0.0003561,31]
[403653605,1769448881400,-179.893832,0.0003561,31]
[403653606,1769448881469,-179.893832,0.0003561,31]
[403653607,1769448881539,-179.893832,0.0003561,31]
[403653608,1769448881610,-179.893832,0.0003561,31]
[403653609,1769448881860,-151.0,0.0003561,31]
[403653610,1769448881930,-1999.0,0.00035616,120]
[403653611,1769448882000,-519.39,0.00036,30]
[403653612,1769448882069,-2000.0,0.00036,30]
[403653613,1769448882137,-250.0,0.00036,120]
[403653614,1769448882205,-500.0,0.00036,48]
[403653615,1769448882275,-1334.38,0.00036,30]
[403653616,1769448882342,-1000.0,0.00036,120]
[403653617,1769448882412,-151.0,0.00036,31]
[403653618,1769448882487,-151.0,0.00036,31]
[403653619,1769448882569,-155.076467,0.00036,31]
[403653620,1769448882638,-151.0,0.00036,31]
[403653621,1769448882710,-151.0,0.00036,31]
[403653622,1769448882786,-611.124037,0.00036,31]
[403653623,1769448882862,-151.0,0.00036,30]
[403653624,1769448882938,-611.124037,0.00036,31]
[403653625,1769448883007,-611.124037,0.00036,31]
[403653626,1769448883076,-611.124037,0.00036,31]
[403653627,1769448883144,-151.0,0.00036,31]
[403653628,1769448883215,-156.188117,0.00036,31]
[403653629,1769448883285,-156.188117,0.00036,31]
[403653630,1769448883361,-156.188117,0.00036,31]
[403653631,1769448883437,-156.188117,0.00036,31]
[403653632,1769448883508,-151.0,0.00036,31]
[403653633,1769448883585,-151.0,0.00036,31]
[403653634,1769448883655,-151.0,0.00036,31]
[403653635,1769448883725,-462.904,0.00036,30]
[403653636,1769448883797,-462.904,0.00036,30]
[403653637,1769448883864,-151.0,0.00036,31]
[403653638,1769448883933,-462.904,0.00036,30]
[403653639,1769448884006,-462.904,0.00036,30]
[403653640,1769448884076,-151.0,0.00036,31]
[403653641,1769448884147,-199.081224,0.00036,31]
[403653642,1769448884216,-199.081224,0.00036,31]
[403653643,1769448884285,-199.081224,0.00036,31]
[403653644,1769448884351,-168.224323,0.00036,31]
[403653645,1769448884417,-199.081224,0.00036,31]
[403653646,1769448884482,-168.224323,0.00036,31]
[403653647,1769448884549,-151.0,0.00036,31]
[403653648,1769448884616,-168.224323,0.00036,31]
[403653649,1769448884683,-168.224323,0.00036,31]
[403653650,1769448884753,-151.0,0.00036,31]
[403653651,1769448884822,-301.770678,0.00036,31]
[403653652,1769448884892,-161.944489,0.00036,31]
[403653653,1769448884960,-161.944489,0.00036,31]
[403653654,1769448885029,-1134.628916,0.00036,31]
[403653655,1769448885097,-161.944489,0.00036,31]
[403653656,1769448885167,-1134.628916,0.00036,31]
[403653657,1769448885233,-151.0,0.00036,31]
[403653658,1769448885304,-161.944489,0.00036,31]
[403653659,1769448885372,-1134.628916,0.00036,31]
[403653660,1769448885441,-151.0,0.00036,31]
[403653661,1769448885516,-1134.628916,0.00036,31]
[403653662,1769448885586,-151.0,0.00036,31]
[403653663,1769448885654,-151.0,0.00036,31]
[403653664,1769448885724,-151.0,0.00036,31]
[403653665,1769448885795,-151.0,0.00036,31]
[403653666,1769448885864,-681.319024,0.00036,31]
[403653667,1769448885931,-681.319024,0.00036,31]
[403653668,1769448885998,-681.319024,0.00036,31]
[403653669,1769448886068,-681.319024,0.00036,31]
[403653670,1769448886134,-151.0,0.00036,31]
[403653671,1769448886200,-151.0,0.00036,31]
[403653672,1769448886266,-151.0,0.00036,31]
[403653673,1769448886334,-151.0,0.00036,31]
[403653674,1769448886400,-151.0,0.00036,31]
[403653675,1769448886468,-151.0,0.00036,31]
[403653676,1769448886537,-151.0,0.00036,31]
[403653677,1769448886607,-151.0,0.00036,31]
[403653678,1769448886684,-154.34165,0.00036,31]
[403653679,1769448886760,-154.34165,0.00036,31]
[403653680,1769448886829,-151.0,0.00036,31]
[403653681,1769448886894,-154.34165,0.00036,31]
[403653682,1769448886963,-151.0,0.00036,31]
[403653683,1769448887034,-154.34165,0.00036,31]
[403653684,1769448887102,-152.191223,0.00036,31]
[403653685,1769448887169,-151.0,0.00036,31]
[403653686,1769448887236,-151.0,0.00036,31]
[403653687,1769448887302,-167.235575,0.00036,31]
[403653688,1769448887369,-151.0,0.00036,31]
[403653689,1769448887438,-363.989533,0.00036,31]
[403653690,1769448887766,-363.989533,0.00036,31]
[403653691,1769448887836,-151.0,0.00036,31]
[403653692,1769448887905,-151.0,0.00036,31]
[403653693,1769448887975,-363.989533,0.00036,31]
[403653694,1769448888047,-723.952333,0.00036,31]
[403653695,1769448888115,-151.0,0.00036,31]
[403653696,1769448888183,-363.989533,0.00036,31]
[403653697,1769448888249,-723.952333,0.00036,31]
[403653698,1769448888315,-151.0,0.00036,31]
[403653699,1769448888382,-199.799083,0.00036,31]
[403653700,1769448888450,-723.952333,0.00036,31]
[403653701,1769448888517,-151.0,0.00036,31]
[403653702,1769448888590,-723.952333,0.00036,31]
[403653703,1769448888660,-199.799083,0.00036,31]
[403653704,1769448888728,-151.0,0.00036,31]
[403653705,1769448888797,-199.799083,0.00036,31]
[403653706,1769448888866,-151.0,0.00036,31]
[403653707,1769448888937,-199.799083,0.00036,31]
[403653708,1769448889008,-151.0,0.00036,31]
[403653709,1769448889082,-151.0,0.00036,31]
[403653710,1769448889152,-151.0,0.00036,31]
[403653711,1769448889222,-151.0,0.00036,31]
[403653712,1769448889291,-939.766061,0.00036,31]
[403653713,1769448889360,-939.766061,0.00036,31]
[403653714,1769448889432,-939.766061,0.00036,31]
[403653715,1769448889504,-939.766061,0.00036,31]
[403653716,1769448889578,-151.0,0.00036,31]
[403653717,1769448889647,-151.0,0.00036,31]
[403653718,1769448889716,-164.564194,0.00036,31]
[403653719,1769448889787,-151.0,0.00036,31]
[403653720,1769448889858,-151.0,0.00036,31]
[403653721,1769448889926,-151.0,0.00036,31]
[403653722,1769448889998,-151.0,0.00036,31]
[403653723,1769448890067,-310.872659,0.00036,31]
[403653724,1769448890138,-151.0,0.00036,31]
[403653725,1769448890207,-310.872659,0.00036,31]
[403653726,1769448890272,-151.0,0.00036,31]
[403653727,1769448890337,-621.666714,0.00036,31]
[403653728,1769448890402,-310.872659,0.00036,31]
[403653729,1769448890467,-305.714627,0.00036,31]
[403653730,1769448890535,-621.666714,0.00036,31]
[403653731,1769448890602,-310.872659,0.00036,31]
[403653732,1769448890671,-305.714627,0.00036,31]
[403653733,1769448890737,-621.666714,0.00036,31]
[403653734,1769448890810,-305.714627,0.00036,31]
[403653735,1769448890883,-621.666714,0.00036,31]
[403653736,1769448890951,-151.0,0.00036,31]
[403653737,1769448891019,-567.683832,0.00036,31]
[403653738,1769448891087,-305.714627,0.00036,31]
[403653739,1769448891155,-567.683832,0.00036,31]
[403653740,1769448891234,-567.683832,0.00036,31]
[403653741,1769448891307,-151.0,0.00036,31]
[403653742,1769448891375,-151.0,0.00036,31]
[403653743,1769448891445,-151.0,0.00036,31]
[403653744,1769448891521,-1706.436858,0.00036,31]
[403653745,1769448891593,-567.683832,0.00036,31]
[403653746,1769448891667,-151.0,0.00036,31]
[403653747,1769448891737,-1706.436858,0.00036,31]
[403653748,1769448891811,-151.0,0.00036,31]
[403653749,1769448891881,-151.0,0.00036,31]
[403653750,1769448891952,-1020.193185,0.00036,31]
[403653751,1769448892023,-151.0,0.00036,31]
[403653752,1769448892091,-1706.436858,0.00036,31]
[403653753,1769448892158,-151.0,0.00036,31]
[403653754,1769448892230,-151.0,0.00036,31]
[403653755,1769448892297,-1020.193185,0.00036,31]
[403653756,1769448892363,-1706.436858,0.00036,31]
[403653757,1769448892431,-1020.193185,0.00036,31]
[403653758,1769448892498,-151.0,0.00036,31]
[403653759,1769448892567,-1020.193185,0.00036,31]
[403653760,1769448892640,-151.0,0.00036,31]
[403653761,1769448892714,-151.0,0.00036,31]
[403653762,1769448892788,-151.0,0.00036,31]
[403653763,1769448892859,-151.0,0.00036,31]
[403653764,1769448892928,-301.602125,0.00036,31]
[403653765,1769448892997,-151.0,0.00036,31]
[403653766,1769448893069,-151.0,0.00036,31]
[403653767,1769448893140,-151.0,0.00036,31]
[403653768,1769448893210,-151.0,0.00036,31]
[403653769,1769448893287,-241.400458,0.00036,31]
[403653770,1769448893647,-151.0,0.00036,31]
[403653771,1769448893719,-151.0,0.00036,31]
[403653772,1769448893792,-222.725257,0.00036,31]
[403653773,1769448893867,-222.725257,0.00036,31]
[403653774,1769448893939,-222.725257,0.00036,31]
[403653775,1769448894008,-151.0,0.00036,31]
[403653776,1769448894080,-222.725257,0.00036,31]
[403653777,1769448894149,-151.0,0.00036,31]
[403653778,1769448894217,-151.0,0.00036,31]
[403653779,1769448894283,-151.0,0.00036,31]
[403653780,1769448894348,-151.0,0.00036,31]
[403653781,1769448894414,-151.0,0.00036,31]
[403653782,1769448894478,-156.460795,0.00036,31]
[403653783,1769448894544,-156.460795,0.00036,31]
[403653784,1769448894611,-156.460795,0.00036,31]
[403653785,1769448894675,-156.460795,0.00036,31]
[403653786,1769448894744,-151.0,0.00036,31]
[403653787,1769448894817,-151.0,0.00036,31]
[403653788,1769448894886,-151.0,0.00036,31]
[403653789,1769448894953,-151.0,0.00036,31]
[403653790,1769448895019,-151.0,0.00036,31]
[403653791,1769448895086,-151.0,0.00036,31]
[403653792,1769448895152,-151.0,0.00036,31]
[403653793,1769448895215,-151.0,0.00036,31]
[403653794,1769448895277,-225.387293,0.00036,31]
[403653795,1769448895335,-151.0,0.00036,31]
[403653796,1769448895399,-151.0,0.00036,31]
[403653797,1769448895465,-164.206091,0.00036,31]
[403653798,1769448895533,-151.042462,0.00036,31]
[403653799,1769448895599,-151.042462,0.00036,31]
[403653800,1769448895665,-151.042462,0.00036,31]
[403653801,1769448895733,-151.042462,0.00036,31]
[403653802,1769448895802,-151.0,0.00036,31]
[403653803,1769448895875,-151.0,0.00036,31]
[403653804,1769448895946,-151.0,0.00036,31]
[403653805,1769448896017,-165.65681265,0.0003601,120]
[403653806,1769448896087,-500.0,0.00036029,31]
[403653807,1769448896157,-500.0,0.00036029,31]
[403653808,1769448896228,-500.0,0.00036029,31]
[403653809,1769448896294,-500.0,0.00036029,31]
[403653810,1769448896358,-1823.34563,0.000362,120]
[403653811,1769448896423,-473.56597018,0.00036294,120]
[403653812,1769448896491,-1999.0,0.00036712,120]
[403653813,1769448896559,-519.39,0.0003672,30]
[403653814,1769448896629,-210.0,0.0003689,30]
[403653815,1769448896698,-1786.4685897,0.000369,120]
[403653816,1769448896767,-151.0,0.00036927,31]
[403653817,1769448896835,-151.0,0.00036927,31]
[403653818,1769448896903,-186.618688,0.00036927,31]
[403653819,1769448896969,-151.0,0.00036927,31]
[403653820,1769448897036,-151.0,0.00036927,31]
[403653821,1769448897103,-163.845237,0.00036927,31]
[403653822,1769448897168,-163.845237,0.00036927,31]
[403653823,1769448897234,-163.845237,0.00036927,31]
[403653824,1769448897298,-163.845237,0.00036927,31]
[403653825,1769448897359,-151.0,0.00036927,31]
[403653826,1769448897423,-151.0,0.00036927,31]
[403653827,1769448897488,-151.0,0.00036927,31]
[403653828,1769448897555,-151.0,0.00036927,31]
[403653829,1769448897622,-228.514887,0.00036927,31]
[403653830,1769448897690,-2000.0,0.00037,30]
[403653831,1769448897763,-1016.0,0.00037,30]
[403653832,1769448897832,-250.0,0.00037,120]
[403653833,1769448897899,-501.17358768,0.00037,60]
[403653834,1769448897968,-161.0,0.00037,120]
[403653835,1769448898034,-1334.38,0.00037,30]
[403653836,1769448898100,-560572.9299112,0.0003717,30]
[403653837,1769448898167,-228.8483073,0.00037212,120]
[403653838,1769448898230,-519.39,0.0003744,30]
[403653839,1769448898292,-1999.0,0.00037808,120]
[403653840,1769448898354,-216.25070912,0.00037819,120]
[403653841,1769448898413,-250.0,0.00038,45]
[403653842,1769448898473,-747.27543485,0.00038,90]
[403653843,1769448898534,-203.08664183,0.00038,120]
[403653844,1769448898596,-2000.0,0.00038,30]
[403653845,1769448898659,-250.0,0.00038,45]
[403653846,1769448898719,-500.0,0.00038,61]
[403653847,1769448898781,-250.0,0.00038,45]
[403653848,1769448898853,-250.0,0.00038,45]
[403653849,1769448898917,-250.0,0.00038,45]
[403653850,1769448898980,-250.0,0.00038,45]
[403653851,1769448899264,-250.0,0.00038,45]
[403653852,1769448899329,-250.0,0.00038,45]
[403653853,1769448899392,-250.0,0.00038,45]
[403653854,1769448899456,-250.0,0.00038,45]
[403653855,1769448899523,-250.0,0.00038,45]
[403653856,1769448899591,-250.0,0.00038,45]
[403653857,1769448899658,-250.0,0.00038,45]
[403653858,1769448899724,-263.26217455,0.00038,120]
[403653859,1769448899798,-245.6,0.00038,90]
[403653860,1769448899866,-250.0,0.00038,45]
[403653861,1769448899931,-292.28638704,0.00038,30]